bitfinex/quotes_ETHUSD_20250215
["timestamp","ask_amount","ask_price","bid_price","bid_amount"]
[1739580160368,0.27272904,2713.6,2713.4,3.68531]
[1739580160968,0.27272904,2713.6,2713.2,3.68568]
[1739580160969,1.10452904,2713.6,2713.3,3.68553]
[1739580161374,0.8318,2713.6,2713.3,3.68553]
[1739580163380,0.8318,2713.6,2713.4,3.68541]
[1739580166757,0.8318,2713.8,2713.4,3.68541]
[1739580167361,0.8318,2713.8,2713.4,4.422504]
[1739580167661,0.8318,2713.8,2713.6,3.68506]
[1739580168186,0.27348769,2713.7,2713.6,3.68506]
[1739580169288,0.8318,2713.8,2713.6,3.68506]
[1739580170603,0.8318,2713.8,2713.4,4.422434]
[1739580170777,4.51667,2713.8,2713.4,4.422434]
[1739580171294,4.51667,2713.8,2713.4,0.737094]
[1739580171501,0.04606473,2713.7,2713.3,4.79434]
[1739580171703,4.51667,2713.8,2713.3,4.79434]
[1739580172309,0.27337445,2713.7,2713.3,4.79434]
[1739580172599,0.27337445,2713.7,2713.4,3.6854]
[1739580173779,0.27337445,2713.6,2713.4,3.6854]
[1739580173990,0.27337445,2713.6,2713.4,4.833379]
[1739580175203,0.27337445,2713.5,2713.4,1.147979]
[1739580175363,0.27337445,2713.5,2713.3,4.79433]
[1739580176471,0.8126,2713.4,2713.3,1.1088]
[1739580177501,4.49801,2713.4,2713.3,1.1088]
[1739580177698,4.54408031,2713.4,2713.3,1.1088]
[1739580178203,5.32143169,2713.4,2713.3,1.1088]
[1739580178894,5.36750683,2713.4,2713.3,1.1088]
[1739580179296,5.32143169,2713.4,2713.3,1.1088]
[1739580180401,4.77143169,2713.4,2713.3,1.1088]
[1739580180808,4.81750417,2713.4,2713.3,1.1088]
[1739580181100,5.36750417,2713.4,2713.3,1.1088]
[1739580181403,5.64150417,2713.4,2713.3,1.1088]
[1739580182189,10.96150688,2713.4,2713.3,1.1088]
[1739580182384,11.64079698,2713.4,2713.3,1.1088]
[1739580183500,0.8126,2712.5,2711.9,0.7749]
[1739580183694,3.6869,2712.3,2711.6,3.68777]
[1739580183896,0.04609192,2712.2,2711.7,4.133867]
[1739580184207,0.04609192,2712.2,2711.8,3.68756]
[1739580184506,0.8126,2712.1,2711.7,7.133977]
[1739580184889,0.8126,2712.1,2711.7,3.0]
[1739580185402,0.8126,2712.1,2711.7,6.68765]
[1739580185780,0.8126,2712.1,2711.7,10.3753]
[1739580186105,0.8126,2712.1,2711.7,6.68765]
[1739580186972,0.8126,2712.1,2711.8,3.6875]
[1739580187515,0.8126,2712.1,2711.7,3.0]
[1739580187810,4.54593434,2712.1,2711.7,3.0]
[1739580189915,0.85869434,2712.1,2711.7,6.68771]
[1739580190119,0.8126,2712.1,2711.7,6.68771]
[1739580190613,0.8126,2712.1,2711.8,3.68757]
[1739580191114,0.8126,2712.1,2711.9,3.68742]
[1739580191497,0.8126,2712.1,2711.7,10.37535]
[1739580191842,0.8126,2712.1,2711.8,3.68747]
[1739580191985,0.8126,2712.1,2711.7,4.115025]
[1739580192186,0.8126,2712.1,2711.8,3.68758]
[1739580194814,0.8126,2712.1,2711.8,7.37509]
[1739580194998,0.8126,2712.1,2711.8,3.68751]
[1739580195598,0.8126,2712.1,2711.7,4.115025]
[1739580195816,4.49985,2712.1,2711.7,6.6877]
[1739580196120,4.49985,2712.1,2711.7,3.0]
[1739580196322,4.49985,2712.1,2711.7,6.6877]
[1739580196621,0.8126,2712.1,2711.7,6.6877]
[1739580198130,0.8126,2712.1,2711.8,3.68756]
[1739580200923,0.8126,2712.1,2711.7,3.0]
[1739580201096,4.49979,2712.1,2711.7,6.6877]
[1739580203303,0.8126,2712.1,2711.7,6.6877]
[1739580203507,0.8126,2712.1,2711.8,3.68757]
[1739580203708,0.8126,2712.1,2711.7,6.68763]
[1739580204010,4.49978,2712.1,2711.7,6.68763]
[1739580204216,0.8126,2712.1,2711.7,6.68763]
[1739580204536,0.8126,2712.1,2711.8,3.68757]
[1739580206641,0.8126,2712.1,2711.7,3.0]
[1739580206642,0.8126,2712.1,2711.7,6.68769]
[1739580207139,0.8126,2712.1,2711.8,3.68745]
[1739580207354,0.8126,2712.1,2711.9,3.68737]
[1739580207758,0.827,2712.3,2712.1,3.68716]
[1739580208056,5.32,2712.4,2712.0,3.68729]
[1739580208555,5.32,2712.4,2711.9,3.68733]
[1739580208752,3.7329899,2712.3,2711.9,3.68733]
[1739580208908,3.7329899,2712.3,2711.8,3.68747]
[1739580209109,3.7329899,2712.3,2711.7,8.593871]
[1739580209110,3.68724,2712.1,2711.7,6.68764]
[1739580209363,3.73333452,2712.1,2711.7,6.68764]
[1739580209542,3.68724,2712.1,2711.7,3.0]
[1739580210259,0.827,2711.9,2711.7,3.0]
[1739580212450,0.827,2711.9,2711.7,6.68762]
[1739580212737,3.68705,2712.2,2711.7,6.68762]
[1739580212738,0.827,2712.1,2711.7,6.68762]
[1739580213240,4.51419,2712.1,2711.8,0.01]
[1739580214452,0.827,2712.1,2711.8,0.01]
[1739580214942,0.27353154,2712.0,2711.9,3.68745]
[1739580216213,0.827,2712.3,2712.0,3.68729]
[1739580216507,5.32,2712.4,2712.0,3.68723]
[1739580216940,5.32,2712.4,2712.1,3.68715]
[1739580217625,0.27347444,2712.3,2712.1,3.68715]
[1739580218331,0.27347444,2712.3,2712.0,3.68731]
[1739580218538,0.27347444,2712.3,2712.2,7.47824]
[1739580218721,0.827,2712.8,2712.4,3.68673]
[1739580218927,0.04608282,2712.7,2712.3,3.6869]
[1739580219127,0.04608282,2712.7,2712.3,6.6869]
[1739580219447,0.827,2712.8,2712.4,3.68665]
[1739580219645,3.6861,2712.9,2712.4,3.68665]
[1739580219945,3.6861,2712.9,2712.4,7.37333]
[1739580220121,3.73237283,2712.8,2712.4,3.0]
[1739580220535,3.68656,2712.6,2712.1,3.68716]
[1739580220717,0.7777,2712.5,2712.1,3.68716]
[1739580220914,0.7777,2712.5,2712.2,3.0]
[1739580221251,0.7777,2712.5,2711.8,0.01]
[1739580221252,3.73288812,2712.4,2711.8,0.01]
[1739580221409,3.73288812,2712.4,2711.9,3.68737]
[1739580221616,0.04608812,2712.4,2711.9,3.68737]
[1739580221952,4.46446,2712.5,2712.1,3.0]
[1739580222314,0.04608899,2712.4,2712.1,3.0]
[1739580223047,0.04608899,2712.4,2711.9,3.68737]
[1739580223227,3.96004076,2712.3,2711.9,3.68737]
[1739580224214,3.96004076,2712.3,2711.8,0.01]
[1739580224526,3.7331299,2712.2,2711.8,3.01]
[1739580224858,0.8217,2712.1,2711.8,0.01]
[1739580225061,4.50889,2712.1,2711.8,0.01]
[1739580225449,0.8217,2712.1,2711.8,0.01]
[1739580225649,3.96018076,2712.2,2711.8,3.69758]
[1739580225815,0.27311076,2712.2,2711.8,3.6975]
[1739580226266,0.31920235,2712.2,2711.9,3.68743]
[1739580226564,0.04609159,2712.2,2711.9,3.68743]
[1739580226713,3.73324159,2712.2,2711.8,0.01]
[1739580227316,0.04609159,2712.2,2711.8,3.69757]
[1739580227966,3.73318159,2712.2,2711.8,0.01]
[1739580228166,0.27305171,2712.1,2711.8,0.01]
[1739580228749,0.8217,2711.9,2711.8,0.01]
[1739580229564,1.09475171,2711.9,2711.8,0.01]
[1739580230841,0.27305171,2711.9,2711.8,0.01]
[1739580235026,4.73330171,2711.9,2711.8,0.01]
[1739580235977,1.04585171,2711.9,2711.8,0.01]
[1739580236483,3.96050171,2711.9,2711.8,0.01]
[1739580238858,4.00659937,2711.9,2711.8,0.01]
[1739580244851,5.37009937,2711.9,2711.8,0.01]
[1739580245166,10.69010603,2711.9,2711.8,0.01]
[1739580245346,10.64400171,2711.9,2711.8,0.01]
[1739580250217,10.82506368,2711.9,2711.8,0.01]
[1739580252788,11.55373812,2711.9,2711.8,0.01]
[1739580256857,10.91800171,2711.9,2711.8,0.01]
[1739580257061,10.10450171,2711.9,2711.8,0.01]
[1739580257262,5.59305171,2711.9,2711.8,0.01]
[1739580258992,5.59305171,2711.9,2711.8,0.8029]
[1739580259198,0.27305171,2711.9,2711.8,4.49048]
[1739580259492,0.27305171,2711.9,2711.8,4.954488]
[1739580261390,3.6869,2712.3,2711.8,4.954488]
[1739580261999,0.74153862,2712.4,2711.9,3.68743]
[1739580262513,4.42832862,2712.4,2711.9,3.68743]
[1739580262799,0.2726788,2712.3,2711.9,3.68743]
[1739580263510,0.2726788,2712.3,2712.2,4.47994]
[1739580264266,5.32,2712.7,2712.3,3.68685]
[1739580264461,5.32,2712.7,2712.2,4.47994]
[1739580264668,5.32,2712.7,2712.4,3.68677]
[1739580264900,6.1531,2712.8,2712.4,3.68677]
[1739580265100,6.19918517,2712.8,2712.4,3.68677]
[1739580265299,0.2726062,2712.6,2712.4,3.68677]
[1739580265770,0.2726062,2712.6,2712.3,3.6869]
[1739580266384,6.58493908,2713.0,2712.4,3.68674]
[1739580266385,11.29499908,2713.0,2712.4,3.68674]
[1739580266578,6.85893908,2713.0,2712.5,0.8296]
[1739580266785,6.63102125,2713.0,2712.6,3.68649]
[1739580266985,6.58493908,2713.0,2712.6,7.3729]
[1739580267186,6.58493908,2713.0,2712.5,0.8296]
[1739580267606,0.27245276,2712.9,2712.8,3.68622]
[1739580267930,0.27245276,2712.9,2712.8,4.51582]
[1739580269010,4.68949375,2713.7,2713.1,3.68568]
[1739580269209,4.68949375,2713.7,2713.1,7.37139]
[1739580269911,4.68949375,2713.7,2713.2,3.68567]
[1739580270205,0.27200839,2713.6,2713.2,3.68558]
[1739580271169,0.27200839,2713.6,2713.1,3.68568]
[1739580271371,0.04607211,2713.6,2713.1,3.68568]
[1739580271575,3.68507,2713.7,2713.2,3.68566]
[1739580271980,2.93588369,2713.8,2712.9,0.8296]
[1739580272180,2.93588369,2713.8,2713.3,4.51505]
[1739580272417,6.62076369,2713.8,2713.3,4.51505]
[1739580273716,2.18578369,2713.8,2713.3,4.51505]
[1739580274016,2.18578369,2713.8,2713.4,3.68541]
[1739580274914,0.04606652,2713.7,2713.4,3.68541]
[1739580275311,2.18578369,2713.8,2713.5,3.68526]
[1739580275503,1.43582793,2713.8,2713.6,3.68513]
[1739580275707,6.5911,2714.0,2713.6,3.68513]
[1739580276291,5.841,2714.0,2713.6,3.68513]
[1739580276517,5.841,2714.0,2713.7,0.8296]
[1739580276723,5.841,2714.0,2713.7,4.51458]
[1739580277314,5.841,2714.0,2713.7,8.650958]
[1739580277522,5.841,2714.0,2713.7,4.965958]
[1739580277694,5.841,2714.0,2713.8,3.68477]
[1739580278690,5.841,2714.0,2713.7,4.966058]
[1739580278888,5.841,2714.0,2713.7,4.5146]
[1739580279092,5.841,2714.0,2713.7,4.51453]
[1739580279695,5.841,2714.0,2713.7,8.19947]
[1739580279891,5.841,2714.0,2713.7,4.51453]
[1739580281817,0.04606182,2713.9,2713.5,4.47267]
[1739580282017,0.04606182,2713.9,2713.5,3.68517]
[1739580282420,3.68493,2713.8,2713.4,0.820046]
[1739580282618,3.68493,2713.8,2713.3,4.47293]
[1739580282619,0.79656578,2713.7,2713.3,8.1584]
[1739580282819,0.79656578,2713.7,2713.4,3.68532]
[1739580282820,0.7505,2713.7,2713.4,3.68532]
[1739580283025,4.43534,2713.9,2713.4,3.68532]
[1739580284129,4.48140574,2713.9,2713.4,3.68532]
[1739580284432,0.7505,2713.9,2713.5,3.68524]
[1739580284731,5.841,2714.0,2713.7,3.68499]
[1739580285460,4.43496,2714.1,2713.7,3.68499]
[1739580285727,3.73067198,2714.0,2713.6,0.368524]
[1739580286034,0.04606198,2714.0,2713.7,3.68491]
[1739580286219,0.74472083,2714.2,2713.8,3.68486]
[1739580286424,0.79078112,2714.2,2713.8,3.68486]
[1739580286628,4.47513112,2714.2,2713.8,3.68486]
[1739580287545,0.74472083,2714.2,2713.8,3.68486]
[1739580287907,0.79078107,2714.2,2713.8,3.68486]
[1739580288111,4.47515107,2714.2,2713.8,3.68486]
[1739580288545,4.42909083,2714.2,2713.8,3.68486]
[1739580289112,0.04606024,2714.1,2713.7,0.8075]
[1739580289343,0.04606024,2714.1,2713.7,0.02]
[1739580289344,3.73052024,2714.1,2713.7,0.02]
[1739580289641,3.68466,2714.0,2713.7,0.02]
[1739580290418,4.43536,2713.8,2713.7,0.02]
[1739580291847,4.48142736,2713.8,2713.7,0.02]
[1739580292140,4.43536,2713.8,2713.7,0.02]
[1739580292542,3.68475,2713.9,2713.7,0.02]
[1739580292731,0.04606601,2713.9,2713.7,0.02]
[1739580293550,3.73086601,2713.9,2713.7,0.02]
[1739580293845,3.68486,2713.8,2713.7,0.02]
[1739580295035,4.43522,2714.0,2713.7,0.02]
[1739580295252,0.27269163,2713.8,2713.7,0.02]
[1739580296454,0.27269163,2713.8,2713.7,0.759025]
[1739580296842,0.27269163,2713.8,2713.7,3.705]
[1739580299453,0.27269163,2713.8,2713.7,0.02]
[1739580300444,0.31875468,2713.8,2713.7,0.02]
[1739580300645,0.27269163,2713.8,2713.7,0.02]
[1739580301558,4.0036159,2713.8,2713.7,0.02]
[1739580302051,0.3187559,2713.8,2713.7,0.02]
[1739580302252,0.27269163,2713.8,2713.7,0.02]
[1739580302624,0.27269163,2713.8,2713.7,3.705]
[1739580302824,0.27269163,2713.8,2713.7,0.02]
[1739580303270,0.31875602,2713.8,2713.7,0.02]
[1739580303628,1.08095602,2713.8,2713.7,0.02]
[1739580303824,4.76581602,2713.8,2713.7,0.02]
[1739580304639,4.71975163,2713.8,2713.7,0.02]
[1739580305355,4.76581884,2713.8,2713.7,0.02]
[1739580305555,4.55361884,2713.8,2713.7,0.02]
[1739580305759,5.31581884,2713.8,2713.7,0.02]
[1739580307161,5.26975163,2713.8,2713.7,0.02]
[1739580307362,5.31582386,2713.8,2713.7,0.02]
[1739580307728,5.26975163,2713.8,2713.7,0.02]
[1739580308662,4.76582382,2713.8,2713.7,0.02]
[1739580308824,4.71975163,2713.8,2713.7,0.02]
[1739580309028,4.76581906,2713.8,2713.7,0.02]
[1739580310760,0.27269163,2713.8,2713.7,0.02]
[1739580310968,0.27269163,2713.8,2713.7,4.869918]
[1739580311851,0.04605837,2714.1,2713.7,1.184918]
[1739580312163,3.68486,2713.8,2713.7,0.02]
[1739580313958,4.42913083,2714.2,2713.7,0.02]
[1739580314126,0.27318677,2713.8,2713.7,4.49932]
[1739580314633,0.27318677,2713.8,2713.7,7.49932]
[1739580315565,5.22614544,2714.7,2714.2,3.6843]
[1739580315866,5.22614544,2714.7,2714.1,3.68445]
[1739580315867,1.54240544,2714.7,2714.1,3.68445]
[1739580316069,0.8003,2714.7,2714.2,0.368445]
[1739580316430,0.8003,2714.7,2714.2,4.052705]
[1739580316631,3.68361,2714.8,2714.3,3.68406]
[1739580316864,7.36722,2714.8,2714.3,3.68406]
[1739580317193,3.68361,2714.8,2714.4,0.7944]
[1739580317361,3.68361,2714.8,2714.4,1.6475165]
[1739580317693,3.68365,2714.7,2714.4,1.6475165]
[1739580317896,3.68365,2714.7,2714.2,4.847105]
[1739580317897,3.72969965,2714.7,2714.2,4.847105]
[1739580318061,3.72969965,2714.7,2713.7,3.70495]
[1739580318062,0.04604965,2714.7,2713.9,3.7944]
[1739580318362,0.04604965,2714.7,2713.9,0.7944]
[1739580318363,3.6843,2714.3,2713.9,0.7944]
[1739580318557,3.68392,2714.5,2713.9,0.7944]
[1739580318817,3.68392,2714.5,2714.0,3.68453]
[1739580319299,3.68378,2714.6,2714.2,3.68431]
[1739580319593,3.9566,2714.8,2713.9,0.7944]
[1739580319594,3.68421,2714.3,2713.9,0.7944]
[1739580319763,8.1688,2714.3,2713.9,0.7944]
[1739580320162,4.48457,2714.3,2713.7,0.02]
[1739580320376,3.68481,2713.9,2713.7,0.02]
[1739580320579,3.7309234,2713.8,2713.7,0.02]
[1739580320864,8.16992,2713.9,2713.7,0.02]
[1739580321063,0.04606433,2713.8,2713.7,0.02]
[1739580321455,4.48511,2713.9,2713.7,0.02]
[1739580321660,0.04606432,2713.8,2713.7,0.02]
[1739580321905,4.48511,2713.9,2713.7,0.02]
[1739580322210,3.73092431,2713.8,2713.7,0.02]
[1739580323310,4.28092431,2713.8,2713.7,0.02]
[1739580323663,4.23486,2713.8,2713.7,0.02]
[1739580323973,3.68486,2713.8,2713.7,0.02]
[1739580324369,0.8003,2713.9,2713.7,0.02]
[1739580324575,0.273,2714.1,2713.7,3.70497]
[1739580324781,0.273,2714.1,2713.8,3.68478]
[1739580324991,4.73417,2714.6,2714.0,3.68459]
[1739580325193,3.68387,2714.6,2714.1,4.48203]
[1739580325568,3.68366,2714.7,2714.2,3.68427]
[1739580326072,3.68366,2714.7,2714.2,4.500894]
[1739580326524,0.73968967,2714.4,2714.2,4.500894]
[1739580326683,0.73968967,2714.4,2714.2,0.816644]
[1739580326886,0.73968967,2714.4,2714.2,4.500944]
[1739580327583,0.73968967,2714.4,2714.3,3.68419]
[1739580327786,3.6836,2714.8,2714.3,4.8824634]
[1739580328500,3.95632,2715.0,2714.5,3.68384]
[1739580328501,3.68332,2715.0,2714.5,3.68384]
[1739580328703,9.79312,2715.1,2714.6,0.7976]
[1739580329011,0.72266243,2714.9,2714.6,0.7976]
[1739580329192,0.72266243,2714.9,2714.6,1.614127]
[1739580329566,3.68345,2714.9,2714.6,1.614127]
[1739580329821,0.1477218,2715.3,2714.6,0.7976]
[1739580329988,3.72909059,2715.2,2714.6,4.4813]
[1739580330182,3.8305518,2715.3,2714.6,4.4813]
[1739580330183,3.68312,2715.1,2714.6,8.16499]
[1739580330382,3.68312,2715.1,2714.6,4.48129]
[1739580330617,0.1477218,2715.3,2714.6,0.7976]
[1739580330814,0.1477218,2715.3,2714.6,3.7976]
[1739580330815,3.72900165,2715.2,2714.6,3.7976]
[1739580330971,3.72900165,2715.2,2714.6,4.48137]
[1739580331172,3.68312,2715.1,2714.6,4.48137]
[1739580331623,3.68296,2715.2,2714.6,4.48125]
[1739580331782,7.36604,2715.2,2714.6,4.48125]
[1739580332315,3.68335,2715.0,2714.6,0.7976]
[1739580332816,3.68316,2715.1,2714.6,4.48135]
[1739580333021,0.1477218,2715.3,2714.6,4.48129]
[1739580333022,7.36613,2715.2,2714.6,4.48129]
[1739580333184,3.68305,2715.2,2714.6,4.48129]
[1739580333501,3.68305,2715.2,2714.7,3.68363]
[1739580333872,3.68313,2715.1,2714.6,4.48129]
[1739580334074,3.68305,2715.2,2714.7,3.68364]
[1739580335003,7.3661,2715.2,2714.7,3.68364]
[1739580335208,3.68314,2715.1,2714.6,4.48131]
[1739580335874,3.68314,2715.1,2714.6,8.16502]
[1739580336075,0.1477218,2715.3,2714.8,3.6835]
[1739580336276,3.8305618,2715.3,2714.8,7.36693]
[1739580336475,3.8305618,2715.3,2714.8,3.68343]
[1739580336878,0.1477218,2715.3,2714.9,3.68334]
[1739580337407,3.87665233,2715.3,2714.6,1.914102]
[1739580337616,3.68309,2715.2,2714.6,4.48131]
[1739580337909,3.68309,2715.2,2714.6,4.48128]
[1739580338115,3.8306218,2715.3,2714.6,4.48128]
[1739580338298,0.1477218,2715.3,2714.6,0.7976]
[1739580338503,0.1477218,2715.3,2714.8,3.68339]
[1739580338698,0.1477218,2715.3,2714.7,3.68364]
[1739580338699,3.72901052,2715.2,2714.7,3.68364]
[1739580338903,3.68297,2715.2,2714.7,3.68364]
[1739580339311,3.8305618,2715.3,2714.8,3.68344]
[1739580340531,3.8305618,2715.3,2714.6,0.7976]
[1739580340532,0.04604051,2715.2,2714.6,4.4813]
[1739580340731,3.68312,2715.1,2714.6,5.597811]
[1739580340892,3.68312,2715.1,2714.7,3.68358]
[1739580341094,3.8305618,2715.3,2714.8,3.68347]
[1739580341847,3.68303,2715.2,2714.8,3.68347]
[1739580342213,3.68318,2715.1,2714.7,3.0]
[1739580342629,3.68318,2715.1,2714.7,3.68364]
[1739580342809,7.3661,2715.2,2714.7,6.68364]
[1739580343945,3.68303,2715.2,2714.7,6.68364]
[1739580344152,3.68303,2715.2,2714.7,6.68357]
[1739580344702,7.3661,2715.2,2714.7,6.68357]
[1739580345033,7.36608,2715.2,2714.7,6.68357]
[1739580345235,3.6832,2715.1,2714.7,3.0]
[1739580345457,0.1477218,2715.3,2714.7,6.68364]
[1739580345606,0.1477218,2715.3,2714.9,3.6833]
[1739580345807,0.1477218,2715.3,2715.0,0.8219]
[1739580346335,0.1477218,2715.3,2715.0,4.50512]
[1739580347924,0.1477218,2715.3,2715.1,4.50492]
[1739580348106,0.1477218,2715.3,2715.2,0.450492]
[1739580348433,0.1477218,2715.3,2715.1,0.8219]
[1739580348956,0.1477218,2715.3,2715.0,3.0]
[1739580349323,3.68312,2715.1,2714.7,3.68356]
[1739580349721,0.1477218,2715.3,2714.6,3.0]
[1739580350044,0.1477218,2715.3,2715.1,4.50492]
[1739580350765,0.1477218,2715.3,2715.1,0.8219]
[1739580351064,0.1477218,2715.3,2714.7,3.68356]
[1739580351264,3.68298,2715.2,2714.8,0.8219]
[1739580351414,3.68298,2715.2,2714.8,4.5054]
[1739580351610,0.1477218,2715.3,2714.9,3.68328]
[1739580351958,0.1477218,2715.3,2714.8,5.324286]
[1739580352128,3.68303,2715.2,2714.8,0.8219]
[1739580352873,0.1477218,2715.3,2714.9,3.68337]
[1739580353014,0.1477218,2715.3,2715.1,3.68307]
[1739580353212,0.1477218,2715.3,2715.1,0.736624]
[1739580353533,0.1477218,2715.3,2715.1,3.68307]
[1739580353736,0.1477218,2715.3,2715.2,0.8219]
[1739580353913,0.1477218,2715.3,2715.2,4.50486]
[1739580356479,0.1477218,2715.3,2715.2,7.50486]
[1739580357724,0.1477218,2715.3,2715.2,3.8219]
[1739580357924,0.1477218,2715.3,2715.2,4.572387]
[1739580358358,0.1477218,2715.3,2715.2,8.255347]
[1739580359174,0.1477218,2715.3,2715.2,4.572387]
[1739580359542,0.1477218,2715.3,2715.2,8.255347]
[1739580360481,0.1477218,2715.3,2715.2,4.572387]
[1739580360863,0.1477218,2715.3,2715.2,8.255347]
[1739580361165,0.1477218,2715.3,2715.2,4.572387]
[1739580361677,0.1477218,2715.3,2715.2,8.255347]
[1739580361831,0.1477218,2715.3,2715.2,4.572387]
[1739580362481,0.1477218,2715.3,2715.2,3.750487]
[1739580363470,0.1477218,2715.3,2715.2,7.433447]
[1739580363668,0.1477218,2715.3,2715.2,3.750487]
[1739580364984,0.1477218,2715.3,2715.2,7.433447]
[1739580365283,0.1477218,2715.3,2715.2,3.750487]
[1739580366939,0.1477218,2715.3,2715.2,3.750487]
[1739580371127,0.1477218,2715.3,2715.2,7.433447]
[1739580371897,0.19375533,2715.3,2714.7,0.7959]
[1739580372097,3.8306618,2715.3,2714.7,4.47948]
[1739580372409,3.68325,2715.0,2714.6,3.68376]
[1739580372609,3.7292932,2715.0,2714.6,3.68376]
[1739580372849,3.68338,2714.9,2714.6,0.816361]
[1739580373269,3.68403,2714.5,2714.0,3.68449]
[1739580373540,0.87595303,2714.4,2713.9,3.68467]
[1739580373843,0.87595303,2714.4,2713.9,3.0]
[1739580373844,4.56007303,2714.4,2713.9,3.0]
[1739580374045,4.51402,2714.4,2713.9,3.0]
[1739580374244,4.51402,2714.4,2714.0,1.116542]
[1739580374445,4.51402,2714.4,2713.9,3.68465]
[1739580374613,0.27340526,2714.3,2713.9,3.68465]
[1739580374809,0.27340526,2714.3,2714.0,3.0]
[1739580375448,0.27340526,2714.3,2713.8,4.48067]
[1739580375949,0.27340526,2714.3,2714.0,3.0]
[1739580376134,4.51396,2714.4,2714.0,3.0]
[1739580376645,0.04605498,2714.3,2713.7,3.70489]
[1739580376807,3.68433,2714.2,2713.7,0.02]
[1739580377023,0.8299,2714.0,2713.7,0.02]
[1739580377223,3.68414,2714.4,2713.8,3.68485]
[1739580377450,7.36826,2714.4,2713.9,3.0]
[1739580377651,3.68412,2714.4,2713.9,3.0]
[1739580377855,0.04605616,2714.3,2713.9,3.0]
[1739580378157,4.51377,2714.6,2714.1,3.68445]
[1739580378356,0.8299,2714.6,2714.2,3.68421]
[1739580378556,0.8299,2714.6,2714.0,3.68451]
[1739580378723,0.04605038,2714.5,2714.1,3.0]
[1739580378919,3.68406,2714.4,2713.8,8.16544]
[1739580379173,0.04605597,2714.3,2713.7,0.02]
[1739580379376,3.68455,2714.1,2713.7,0.02]
[1739580379780,0.8299,2714.2,2713.8,3.68484]
[1739580380062,0.8299,2714.4,2713.9,3.68465]
[1739580380264,0.8299,2714.6,2714.1,3.68437]
[1739580380453,0.8299,2714.6,2714.1,7.36875]
[1739580380654,0.8299,2714.6,2714.2,3.0]
[1739580380857,9.00354,2714.8,2714.3,3.68418]
[1739580381034,9.83344,2714.8,2714.3,3.68418]
[1739580381236,3.68381,2714.6,2714.2,3.0]
[1739580382566,3.68367,2714.7,2714.2,6.68428]
[1739580382766,3.72971865,2714.7,2714.2,6.68428]
[1739580382969,3.68367,2714.7,2714.2,6.68428]
[1739580383638,0.04604865,2714.7,2714.2,3.0]
[1739580383841,3.68385,2714.6,2714.2,3.0]
[1739580385059,0.8022,2714.4,2714.1,3.0]
[1739580385439,0.04605288,2714.3,2713.7,0.02]
[1739580385634,0.8022,2713.9,2713.7,0.02]
[1739580385853,0.8022,2713.9,2713.7,3.02]
[1739580386157,4.48658,2714.2,2713.7,6.70493]
[1739580386481,3.68446,2714.1,2713.7,6.70493]
[1739580386844,0.8022,2714.2,2713.8,3.68478]
[1739580387153,9.00405,2714.4,2713.9,3.68461]
[1739580387339,3.68429,2714.3,2713.8,3.7929]
[1739580387680,9.00405,2714.4,2713.8,7.47766]
[1739580387875,9.00405,2714.4,2713.9,3.68467]
[1739580388197,5.32,2714.4,2714.1,3.68435]
[1739580388542,5.32,2714.4,2714.0,3.68459]
[1739580389376,5.32,2714.4,2714.0,3.0]
[1739580389570,5.32,2714.4,2714.0,6.68459]
[1739580389774,5.32,2714.4,2713.9,4.2014363]
[1739580389775,0.04605183,2714.3,2713.9,3.0]
[1739580390073,3.68425,2714.3,2713.8,6.68482]
[1739580390265,3.73030658,2714.3,2713.8,6.68482]
[1739580390569,3.73030658,2714.3,2713.7,0.02]
[1739580390770,3.73030658,2714.3,2713.7,3.02]
[1739580390771,3.68447,2714.1,2713.7,3.02]
[1739580390975,3.68463,2714.0,2713.7,0.02]
[1739580391176,0.8022,2714.2,2713.7,0.02]
[1739580391366,0.8022,2714.2,2713.8,3.68478]
[1739580391570,0.8022,2714.5,2713.9,3.68461]
[1739580391867,3.68405,2714.4,2714.0,3.68456]
[1739580392077,0.8022,2714.5,2714.0,3.68456]
[1739580392285,4.48612,2714.5,2714.0,3.68456]
[1739580392677,8.17012,2714.5,2714.0,3.68456]
[1739580392987,0.8022,2714.5,2714.1,3.68435]
[1739580393764,0.8022,2714.5,2713.9,3.68463]
[1739580394086,3.68419,2714.3,2713.8,0.7929]
[1739580394398,5.32,2714.7,2713.7,0.02]
[1739580394399,0.8022,2714.0,2713.7,0.02]
[1739580394553,3.68473,2713.9,2713.7,0.02]
[1739580394955,0.8022,2714.0,2713.7,0.02]
[1739580397982,3.68433,2714.2,2713.7,3.70494]
[1739580398154,4.48649,2714.3,2713.8,3.68483]
[1739580398572,0.04605718,2714.2,2713.7,5.53684]
[1739580398784,0.04605718,2714.2,2713.7,4.49784]
[1739580398990,0.8022,2714.3,2713.9,3.68464]
[1739580399290,3.68402,2714.5,2713.7,0.8129]
[1739580399291,0.7943,2714.6,2714.2,3.68428]
[1739580399698,0.7943,2714.6,2714.2,4.50326]
[1739580399986,0.7943,2714.6,2714.2,8.18751]
[1739580400214,5.21115929,2714.8,2714.3,3.68419]
[1739580401307,0.27328716,2714.7,2714.4,3.68398]
[1739580401458,0.27328716,2714.7,2714.3,4.502934]
[1739580401653,0.27328716,2714.7,2714.4,3.68397]
[1739580402191,0.27328716,2714.7,2714.5,3.68389]
[1739580402382,0.27328716,2714.7,2714.5,3.68391]
[1739580402558,0.27328716,2714.7,2714.6,3.68378]
[1739580402760,0.27328716,2714.7,2714.5,1.1186844]
[1739580403058,0.27328716,2714.6,2714.4,6.68393]
[1739580403476,0.27328716,2714.6,2714.4,3.0]